[Event "Titled Tuesday Blitz August 22 Early 2023"]
[White "CrazyAdvenTures"]
[Black "micke12a"]
[WhiteElo "2612"]
[BlackElo "2330"]
[Result "1-0"]
[Round "1"]
[TimeControl "180+1"]
[Date "2023.08.22"]
[WhiteClock "0:02:02"]
[BlackClock "0:02:25"]
[Board "160"]

1. e4 {[%clk 0:03:00]}  c5 {[%clk 0:02:58]} 2. Nf3 {[%clk 0:02:58]}  d6 {[%clk 0:02:59]} 3. d4 {[%clk 0:02:58]}  cxd4 {[%clk 0:03:00]} 4. Nxd4 {[%clk 0:02:59]}  Nf6 {[%clk 0:03:00]} 5. Nc3 {[%clk 0:02:59]}  g6 {[%clk 0:03:01]} 6. f4 {[%clk 0:02:58]}  Nc6 {[%clk 0:03:00]} 7. Nxc6 {[%clk 0:02:45]}  bxc6 {[%clk 0:02:57]} 8. Qf3 {[%clk 0:02:45]}  Bg7 {[%clk 0:02:50]} 9. Bd3 {[%clk 0:02:39]}  O-O {[%clk 0:02:48]} 10. O-O {[%clk 0:02:33]}  Qb6+ {[%clk 0:02:43]} 11. Kh1 {[%clk 0:02:31]}  Bb7 {[%clk 0:02:35]} 12. Be3 {[%clk 0:02:12]}  c5 {[%clk 0:02:34]} 13. Rab1 {[%clk 0:02:02]}  Qa6 {[%clk 0:02:25]} 14. Bxa6 {[%clk 0:02:02]} 1-0


[Site "https://www.chess.com"]

[Event "Titled Tuesday Blitz August 22 Early 2023"]
[White "Kvaloy, Aksel Bu"]
[Black "Ardila, Oscar Humberto"]
[WhiteFideId "1528815"]
[BlackFideId "4404742"]
[WhiteElo "2610"]
[BlackElo "2326"]
[Result "1-0"]
[Round "1"]
[TimeControl "180+1"]
[Date "2023.08.22"]
[WhiteClock "0:00:18"]
[BlackClock "0:00:00"]
[Board "162"]

1. e4 {[%clk 0:02:59]}  e5 {[%clk 0:02:58]} 2. Nf3 {[%clk 0:02:55]}  Nf6 {[%clk 0:02:59]} 3. Nc3 {[%clk 0:02:53]}  Nc6 {[%clk 0:02:58]} 4. a3 {[%clk 0:02:49]}  d5 {[%clk 0:02:53]} 5. Bb5 {[%clk 0:02:49]}  d4 {[%clk 0:02:48]} 6. Ne2 {[%clk 0:02:47]}  Bd6 {[%clk 0:02:47]} 7. d3 {[%clk 0:02:46]}  a6 {[%clk 0:02:46]} 8. Bc4 {[%clk 0:02:44]}  b5 {[%clk 0:02:45]} 9. Ba2 {[%clk 0:02:44]}  O-O {[%clk 0:02:43]} 10. O-O {[%clk 0:02:44]}  Be6 {[%clk 0:02:44]} 11. Ne1 {[%clk 0:02:44]}  Qd7 {[%clk 0:02:22]} 12. Bxe6 {[%clk 0:02:37]}  fxe6 {[%clk 0:02:19]} 13. h3 {[%clk 0:02:38]}  Qf7 {[%clk 0:02:12]} 14. f4 {[%clk 0:02:33]}  exf4 {[%clk 0:02:12]} 15. Bxf4 {[%clk 0:02:31]}  e5 {[%clk 0:02:13]} 16. Bg5 {[%clk 0:02:30]}  Qg6 {[%clk 0:02:12]} 17. Nf3 {[%clk 0:02:27]}  h6 {[%clk 0:02:09]} 18. Bxf6 {[%clk 0:02:24]}  Rxf6 {[%clk 0:02:02]} 19. Nh4 {[%clk 0:02:24]}  Rxf1+ {[%clk 0:01:58]} 20. Qxf1 {[%clk 0:02:22]}  Qg5 {[%clk 0:01:59]} 21. Nf3 {[%clk 0:02:21]}  Qe3+ {[%clk 0:01:58]} 22. Qf2 {[%clk 0:02:21]}  Qxf2+ {[%clk 0:01:53]} 23. Kxf2 {[%clk 0:02:22]}  Rf8 {[%clk 0:01:53]} 24. Ng3 {[%clk 0:02:20]}  g6 {[%clk 0:01:52]} 25. Ke2 {[%clk 0:02:17]}  Kg7 {[%clk 0:01:51]} 26. h4 {[%clk 0:02:16]}  h5 {[%clk 0:01:46]} 27. Ng5 {[%clk 0:02:16]}  Nd8 {[%clk 0:01:46]} 28. a4 {[%clk 0:02:09]}  b4 {[%clk 0:01:45]} 29. b3 {[%clk 0:02:05]}  Be7 {[%clk 0:01:45]} 30. Nf3 {[%clk 0:02:03]}  Nc6 {[%clk 0:01:28]} 31. Nf1 {[%clk 0:02:02]}  Rf4 {[%clk 0:01:26]} 32. g3 {[%clk 0:02:00]}  Rf8 {[%clk 0:01:21]} 33. N1d2 {[%clk 0:02:00]}  a5 {[%clk 0:01:14]} 34. Nc4 {[%clk 0:01:59]}  Bd6 {[%clk 0:01:15]} 35. Rg1 {[%clk 0:01:49]}  Kf6 {[%clk 0:01:06]} 36. Ng5 {[%clk 0:01:49]}  Ke7 {[%clk 0:01:01]} 37. Nh7 {[%clk 0:01:45]}  Rf7 {[%clk 0:00:57]} 38. Ng5 {[%clk 0:01:44]}  Rf8 {[%clk 0:00:57]} 39. Rg2 {[%clk 0:01:41]}  Rf6 {[%clk 0:00:55]} 40. g4 {[%clk 0:01:30]}  Rf4 {[%clk 0:00:50]} 41. Nh3 {[%clk 0:01:15]}  Rxg4 {[%clk 0:00:49]} 42. Rxg4 {[%clk 0:01:03]}  hxg4 {[%clk 0:00:50]} 43. Nf2 {[%clk 0:01:01]}  g3 {[%clk 0:00:47]} 44. Ng4 {[%clk 0:01:01]}  Ke6 {[%clk 0:00:44]} 45. Kf3 {[%clk 0:01:01]}  Be7 {[%clk 0:00:44]} 46. Kxg3 {[%clk 0:01:01]}  Bd8 {[%clk 0:00:38]} 47. Nh2 {[%clk 0:01:00]}  Be7 {[%clk 0:00:27]} 48. Nf3 {[%clk 0:00:59]}  Bd8 {[%clk 0:00:24]} 49. Kg4 {[%clk 0:00:59]}  Bf6 {[%clk 0:00:22]} 50. h5 {[%clk 0:00:23]}  gxh5+ {[%clk 0:00:21]} 51. Kxh5 {[%clk 0:00:24]}  Be7 {[%clk 0:00:16]} 52. Kg6 {[%clk 0:00:24]}  Bf8 {[%clk 0:00:11]} 53. Nh2 {[%clk 0:00:24]}  Be7 {[%clk 0:00:05]} 54. Ng4 {[%clk 0:00:24]}  Bf8 {[%clk 0:00:04]} 55. Nf6 {[%clk 0:00:22]}  Be7 {[%clk 0:00:03]} 56. Nh5 {[%clk 0:00:18]}  Bd8 {[%clk 0:00:02]} 57. Ng7+ {[%clk 0:00:18]}  Ke7 {[%clk 0:00:00]} 58. Kf5 {[%clk 0:00:18]} 1-0


[Site "https://www.chess.com"]

[Event "Titled Tuesday Blitz August 22 Early 2023"]
[White "Goswami, Vedant"]
[Black "Kuzhilniy, Oleksandr"]
[WhiteFideId "5003725"]
[BlackFideId "34110500"]
[WhiteElo "2326"]
[BlackElo "2607"]
[Result "0-1"]
[Round "1"]
[TimeControl "180+1"]
[Date "2023.08.22"]
[WhiteClock "0:00:33"]
[BlackClock "0:01:34"]
[Board "163"]

1. c4 {[%clk 0:02:58]}  Nf6 {[%clk 0:02:58]} 2. Nc3 {[%clk 0:02:56]}  e5 {[%clk 0:02:58]} 3. Nf3 {[%clk 0:02:54]}  Nc6 {[%clk 0:02:58]} 4. e4 {[%clk 0:02:52]}  g6 {[%clk 0:02:52]} 5. Be2 {[%clk 0:02:48]}  Bg7 {[%clk 0:02:52]} 6. O-O {[%clk 0:02:48]}  O-O {[%clk 0:02:53]} 7. d3 {[%clk 0:02:48]}  d6 {[%clk 0:02:53]} 8. Be3 {[%clk 0:02:33]}  Ng4 {[%clk 0:02:51]} 9. Bg5 {[%clk 0:02:33]}  f6 {[%clk 0:02:51]} 10. Bh4 {[%clk 0:02:32]}  h5 {[%clk 0:02:43]} 11. h3 {[%clk 0:02:32]}  Nh6 {[%clk 0:02:43]} 12. d4 {[%clk 0:02:22]}  Kh7 {[%clk 0:02:24]} 13. dxe5 {[%clk 0:02:13]}  dxe5 {[%clk 0:02:23]} 14. Qxd8 {[%clk 0:02:02]}  Nxd8 {[%clk 0:02:24]} 15. Nd5 {[%clk 0:01:59]}  Ne6 {[%clk 0:02:23]} 16. Rfd1 {[%clk 0:01:47]}  c6 {[%clk 0:02:07]} 17. Ne7 {[%clk 0:01:45]}  Nf4 {[%clk 0:02:05]} 18. Bf1 {[%clk 0:01:39]}  Be6 {[%clk 0:02:02]} 19. Rd6 {[%clk 0:01:19]}  Nf7 {[%clk 0:01:58]} 20. Rd2 {[%clk 0:01:13]}  Rae8 {[%clk 0:01:56]} 21. Nd5 {[%clk 0:01:03]}  cxd5 {[%clk 0:01:55]} 22. cxd5 {[%clk 0:01:03]}  Bd7 {[%clk 0:01:55]} 23. Rc1 {[%clk 0:01:01]}  Rc8 {[%clk 0:01:53]} 24. Rdc2 {[%clk 0:01:01]}  Rxc2 {[%clk 0:01:49]} 25. Rxc2 {[%clk 0:01:01]}  Rc8 {[%clk 0:01:50]} 26. Rxc8 {[%clk 0:00:59]}  Bxc8 {[%clk 0:01:51]} 27. Kh2 {[%clk 0:00:58]}  Nd6 {[%clk 0:01:48]} 28. g3 {[%clk 0:00:55]}  g5 {[%clk 0:01:38]} 29. Bxg5 {[%clk 0:00:49]}  fxg5 {[%clk 0:01:38]} 30. Nxg5+ {[%clk 0:00:49]}  Kg6 {[%clk 0:01:38]} 31. gxf4 {[%clk 0:00:49]}  exf4 {[%clk 0:01:39]} 32. Ne6 {[%clk 0:00:42]}  Bxe6 {[%clk 0:01:37]} 33. dxe6 {[%clk 0:00:43]}  Be5 {[%clk 0:01:34]} 34. f3 {[%clk 0:00:33]}  Kf6 {[%clk 0:01:34]} 0-1


[Site "https://www.chess.com"]

[Event "Titled Tuesday Blitz August 22 Early 2023"]
[White "Arat, Ufuk Sezen"]
[Black "Davidson, Kevin"]
[WhiteFideId "6309089"]
[BlackFideId "2056810"]
[WhiteElo "2606"]
[BlackElo "2324"]
[Result "1-0"]
[Round "1"]
[TimeControl "180+1"]
[Date "2023.08.22"]
[WhiteClock "0:01:15"]
[BlackClock "0:00:00"]
[Board "164"]

1. e4 {[%clk 0:03:00]}  c5 {[%clk 0:02:59]} 2. Nf3 {[%clk 0:03:01]}  d6 {[%clk 0:02:59]} 3. d4 {[%clk 0:03:02]}  cxd4 {[%clk 0:03:00]} 4. Nxd4 {[%clk 0:03:01]}  Nf6 {[%clk 0:03:00]} 5. Bb5+ {[%clk 0:03:01]}  Nbd7 {[%clk 0:03:00]} 6. O-O {[%clk 0:03:01]}  a6 {[%clk 0:02:59]} 7. Bd3 {[%clk 0:03:00]}  g6 {[%clk 0:02:56]} 8. c4 {[%clk 0:03:00]}  Bg7 {[%clk 0:02:57]} 9. Nc3 {[%clk 0:03:00]}  O-O {[%clk 0:02:57]} 10. Re1 {[%clk 0:02:58]}  Nc5 {[%clk 0:02:55]} 11. h3 {[%clk 0:02:56]}  Nxd3 {[%clk 0:02:30]} 12. Qxd3 {[%clk 0:02:54]}  Bd7 {[%clk 0:02:30]} 13. Be3 {[%clk 0:02:53]}  Rc8 {[%clk 0:02:23]} 14. b3 {[%clk 0:02:51]}  Qa5 {[%clk 0:02:14]} 15. Rac1 {[%clk 0:02:50]}  b5 {[%clk 0:02:00]} 16. Nd5 {[%clk 0:02:46]}  Rfe8 {[%clk 0:01:42]} 17. cxb5 {[%clk 0:02:24]}  axb5 {[%clk 0:01:28]} 18. Rxc8 {[%clk 0:02:23]}  Bxc8 {[%clk 0:01:27]} 19. Nc6 {[%clk 0:02:15]}  Qxe1+ {[%clk 0:01:25]} 20. Kh2 {[%clk 0:02:15]}  Nxd5 {[%clk 0:01:18]} 21. exd5 {[%clk 0:02:12]}  Bd7 {[%clk 0:00:59]} 22. Qxb5 {[%clk 0:02:05]}  Qc3 {[%clk 0:00:47]} 23. Qb7 {[%clk 0:01:39]}  Bxc6 {[%clk 0:00:37]} 24. dxc6 {[%clk 0:01:38]}  Bd4 {[%clk 0:00:23]} 25. Qd7 {[%clk 0:01:34]}  Rf8 {[%clk 0:00:21]} 26. c7 {[%clk 0:01:29]}  Bxe3 {[%clk 0:00:18]} 27. fxe3 {[%clk 0:01:30]}  Qe5+ {[%clk 0:00:17]} 28. Kh1 {[%clk 0:01:29]}  Qc5 {[%clk 0:00:17]} 29. b4 {[%clk 0:01:26]}  Qc1+ {[%clk 0:00:16]} 30. Kh2 {[%clk 0:01:24]}  Qxe3 {[%clk 0:00:14]} 31. c8=Q {[%clk 0:01:23]}  Qf4+ {[%clk 0:00:13]} 32. Kg1 {[%clk 0:01:22]}  Qe3+ {[%clk 0:00:12]} 33. Kf1 {[%clk 0:01:22]}  Rxc8 {[%clk 0:00:07]} 34. Qxc8+ {[%clk 0:01:21]}  Kg7 {[%clk 0:00:08]} 35. Qc4 {[%clk 0:01:21]}  e5 {[%clk 0:00:06]} 36. b5 {[%clk 0:01:22]}  e4 {[%clk 0:00:06]} 37. Qb3 {[%clk 0:01:17]}  Qc1+ {[%clk 0:00:05]} 38. Ke2 {[%clk 0:01:17]}  Qc7 {[%clk 0:00:03]} 39. b6 {[%clk 0:01:17]}  Qb7 {[%clk 0:00:03]} 40. a4 {[%clk 0:01:18]}  d5 {[%clk 0:00:02]} 41. a5 {[%clk 0:01:18]}  d4 {[%clk 0:00:03]} 42. Qb2 {[%clk 0:01:16]}  Qa6+ {[%clk 0:00:03]} 43. Ke1 {[%clk 0:01:15]}  Qd3 {[%clk 0:00:02]} 44. b7 {[%clk 0:01:15]}  Qe3+ {[%clk 0:00:00]} 45. Kf1 {[%clk 0:01:15]} 1-0


[Site "https://www.chess.com"]

[Event "Titled Tuesday Blitz August 22 Early 2023"]
[White "Feng, Eric"]
[Black "kaanadayhamle"]
[WhiteFideId "30952590"]
[WhiteElo "2604"]
[BlackElo "2321"]
[Result "1-0"]
[Round "1"]
[TimeControl "180+1"]
[Date "2023.08.22"]
[WhiteClock "0:00:09"]
[BlackClock "0:00:04"]
[Board "168"]

1. d4 {[%clk 0:03:00]}  Nf6 {[%clk 0:02:59]} 2. c4 {[%clk 0:03:00]}  e6 {[%clk 0:03:00]} 3. Nf3 {[%clk 0:02:57]}  b6 {[%clk 0:02:59]} 4. g3 {[%clk 0:02:57]}  Bb7 {[%clk 0:02:59]} 5. Bg2 {[%clk 0:02:57]}  Bb4+ {[%clk 0:02:59]} 6. Bd2 {[%clk 0:02:57]}  Be7 {[%clk 0:03:00]} 7. O-O {[%clk 0:02:56]}  O-O {[%clk 0:03:00]} 8. Nc3 {[%clk 0:02:57]}  d6 {[%clk 0:03:00]} 9. Qc2 {[%clk 0:02:57]}  Nbd7 {[%clk 0:03:00]} 10. e4 {[%clk 0:02:58]}  e5 {[%clk 0:03:01]} 11. d5 {[%clk 0:02:57]}  a5 {[%clk 0:03:01]} 12. a3 {[%clk 0:02:57]}  Ba6 {[%clk 0:03:00]} 13. b3 {[%clk 0:02:55]}  Nc5 {[%clk 0:03:00]} 14. Rfd1 {[%clk 0:02:53]}  a4 {[%clk 0:02:58]} 15. Nxa4 {[%clk 0:02:47]}  Nxa4 {[%clk 0:02:47]} 16. bxa4 {[%clk 0:02:47]}  Qd7 {[%clk 0:02:47]} 17. a5 {[%clk 0:02:46]}  bxa5 {[%clk 0:02:47]} 18. Bxa5 {[%clk 0:02:46]}  Bxc4 {[%clk 0:02:39]} 19. Bb4 {[%clk 0:02:44]}  Bb5 {[%clk 0:02:37]} 20. Rdc1 {[%clk 0:02:43]}  Rfc8 {[%clk 0:02:36]} 21. Ng5 {[%clk 0:02:33]}  Ng4 {[%clk 0:02:03]} 22. Nf3 {[%clk 0:02:23]}  Nf6 {[%clk 0:02:03]} 23. Nd2 {[%clk 0:02:03]}  g6 {[%clk 0:01:53]} 24. h4 {[%clk 0:01:52]}  h5 {[%clk 0:01:52]} 25. f3 {[%clk 0:01:52]}  c5 {[%clk 0:01:46]} 26. dxc6 {[%clk 0:01:51]}  Rxc6 {[%clk 0:01:45]} 27. Qb3 {[%clk 0:01:51]}  Ba4 {[%clk 0:01:43]} 28. Qe3 {[%clk 0:01:49]}  Bd8 {[%clk 0:01:42]} 29. Kh2 {[%clk 0:01:47]}  Rac8 {[%clk 0:01:38]} 30. Bh3 {[%clk 0:01:38]}  Ng4+ {[%clk 0:01:24]} 31. fxg4 {[%clk 0:00:43]}  Rxc1 {[%clk 0:01:23]} 32. gxh5 {[%clk 0:00:43]}  f5 {[%clk 0:01:08]} 33. Rxc1 {[%clk 0:00:42]}  Rxc1 {[%clk 0:01:09]} 34. hxg6 {[%clk 0:00:43]}  f4 {[%clk 0:00:29]} 35. gxf4 {[%clk 0:00:42]}  Qe7 {[%clk 0:00:30]} 36. fxe5 {[%clk 0:00:31]}  Qxe5+ {[%clk 0:00:26]} 37. Kg2 {[%clk 0:00:19]}  Bxh4 {[%clk 0:00:21]} 38. Qf3 {[%clk 0:00:19]}  Be8 {[%clk 0:00:16]} 39. Bf5 {[%clk 0:00:17]}  Kg7 {[%clk 0:00:12]} 40. Qg4 {[%clk 0:00:16]}  Be1 {[%clk 0:00:10]} 41. Qh3 {[%clk 0:00:14]}  Qf4 {[%clk 0:00:06]} 42. Qh7+ {[%clk 0:00:11]}  Kf8 {[%clk 0:00:04]} 43. g7+ {[%clk 0:00:10]}  Ke7 {[%clk 0:00:05]} 44. g8=Q+ {[%clk 0:00:10]}  Kd8 {[%clk 0:00:06]} 45. Ba5+ {[%clk 0:00:10]}  Rc7 {[%clk 0:00:04]} 46. Qxc7# {[%clk 0:00:09]} 1-0


[Site "https://www.chess.com"]

[Event "Titled Tuesday Blitz August 22 Early 2023"]
[White "Carre, Sylvain"]
[Black "brm72"]
[WhiteFideId "642118"]
[WhiteElo "2319"]
[BlackElo "2603"]
[Result "1-0"]
[Round "1"]
[TimeControl "180+1"]
[Date "2023.08.22"]
[WhiteClock "0:00:21"]
[BlackClock "0:01:27"]
[Board "169"]

1. d4 {[%clk 0:03:00]}  Nf6 {[%clk 0:02:59]} 2. Bf4 {[%clk 0:03:01]}  g6 {[%clk 0:02:59]} 3. e3 {[%clk 0:03:01]}  Bg7 {[%clk 0:03:00]} 4. Nf3 {[%clk 0:03:02]}  O-O {[%clk 0:03:00]} 5. Be2 {[%clk 0:03:02]}  d6 {[%clk 0:02:59]} 6. O-O {[%clk 0:03:03]}  Nbd7 {[%clk 0:02:59]} 7. h3 {[%clk 0:03:04]}  c5 {[%clk 0:02:59]} 8. c3 {[%clk 0:03:03]}  b6 {[%clk 0:02:58]} 9. Nbd2 {[%clk 0:03:04]}  Bb7 {[%clk 0:02:58]} 10. Bh2 {[%clk 0:03:03]}  a6 {[%clk 0:02:57]} 11. a4 {[%clk 0:03:03]}  Ra7 {[%clk 0:02:56]} 12. Ne1 {[%clk 0:02:58]}  Qa8 {[%clk 0:02:53]} 13. Bf3 {[%clk 0:02:58]}  Ne4 {[%clk 0:02:49]} 14. Nxe4 {[%clk 0:02:58]}  Bxe4 {[%clk 0:02:50]} 15. Bxe4 {[%clk 0:02:55]}  Qxe4 {[%clk 0:02:50]} 16. Qf3 {[%clk 0:02:51]}  Qxf3 {[%clk 0:02:49]} 17. Nxf3 {[%clk 0:02:52]}  Rfa8 {[%clk 0:02:49]} 18. Bf4 {[%clk 0:02:45]}  b5 {[%clk 0:02:48]} 19. a5 {[%clk 0:02:33]}  Rb7 {[%clk 0:02:46]} 20. e4 {[%clk 0:02:22]}  cxd4 {[%clk 0:02:27]} 21. cxd4 {[%clk 0:02:20]}  Rc8 {[%clk 0:02:28]} 22. Rac1 {[%clk 0:02:14]}  Rbc7 {[%clk 0:02:28]} 23. Rxc7 {[%clk 0:02:12]}  Rxc7 {[%clk 0:02:29]} 24. Rc1 {[%clk 0:02:04]}  Rxc1+ {[%clk 0:02:27]} 25. Bxc1 {[%clk 0:02:05]}  Nf6 {[%clk 0:02:27]} 26. e5 {[%clk 0:01:19]}  Nd5 {[%clk 0:02:23]} 27. Bd2 {[%clk 0:01:12]}  h6 {[%clk 0:02:14]} 28. Kf1 {[%clk 0:01:11]}  Kf8 {[%clk 0:02:14]} 29. Ke2 {[%clk 0:01:12]}  Ke8 {[%clk 0:02:14]} 30. Kd3 {[%clk 0:01:12]}  dxe5 {[%clk 0:02:10]} 31. dxe5 {[%clk 0:01:10]}  Kd7 {[%clk 0:02:10]} 32. Ke4 {[%clk 0:01:07]}  e6 {[%clk 0:02:09]} 33. Nd4 {[%clk 0:01:04]}  Ne7 {[%clk 0:02:06]} 34. f4 {[%clk 0:00:56]}  Nc6 {[%clk 0:01:59]} 35. Nxc6 {[%clk 0:00:56]}  Kxc6 {[%clk 0:01:59]} 36. Bb4 {[%clk 0:00:54]}  h5 {[%clk 0:01:53]} 37. g4 {[%clk 0:00:54]}  hxg4 {[%clk 0:01:52]} 38. hxg4 {[%clk 0:00:55]}  Bh6 {[%clk 0:01:52]} 39. g5 {[%clk 0:00:45]}  Bg7 {[%clk 0:01:51]} 40. Be7 {[%clk 0:00:41]}  Kd7 {[%clk 0:01:50]} 41. Bd6 {[%clk 0:00:37]}  Kc6 {[%clk 0:01:44]} 42. b4 {[%clk 0:00:30]}  Bh8 {[%clk 0:01:42]} 43. Bf8 {[%clk 0:00:29]}  Kd7 {[%clk 0:01:40]} 44. Kd4 {[%clk 0:00:28]}  Kc6 {[%clk 0:01:38]} 45. Bh6 {[%clk 0:00:23]}  Kd7 {[%clk 0:01:31]} 46. Kc5 {[%clk 0:00:23]}  Kc7 {[%clk 0:01:27]} 47. Bf8 {[%clk 0:00:21]} 1-0


[Site "https://www.chess.com"]

[Event "Titled Tuesday Blitz August 22 Early 2023"]
[White "Principe, Alexander"]
[Black "Acikel, Mert"]
[WhiteFideId "3804542"]
[BlackFideId "12956465"]
[WhiteElo "2601"]
[BlackElo "2315"]
[Result "1-0"]
[Round "1"]
[TimeControl "180+1"]
[Date "2023.08.22"]
[WhiteClock "0:01:09"]
[BlackClock "0:01:38"]
[Board "172"]

1. e4 {[%clk 0:02:39]}  e5 {[%clk 0:02:57]} 2. Nf3 {[%clk 0:02:39]}  Nc6 {[%clk 0:02:57]} 3. d4 {[%clk 0:02:39]}  exd4 {[%clk 0:02:57]} 4. Nxd4 {[%clk 0:02:39]}  Bc5 {[%clk 0:02:57]} 5. Be3 {[%clk 0:02:39]}  Qf6 {[%clk 0:02:57]} 6. c3 {[%clk 0:02:39]}  Nge7 {[%clk 0:02:58]} 7. Bc4 {[%clk 0:02:39]}  b6 {[%clk 0:02:58]} 8. a3 {[%clk 0:02:33]}  O-O {[%clk 0:02:53]} 9. O-O {[%clk 0:02:32]}  Bb7 {[%clk 0:02:52]} 10. b4 {[%clk 0:02:33]}  Bxd4 {[%clk 0:02:52]} 11. cxd4 {[%clk 0:02:32]}  Rad8 {[%clk 0:02:45]} 12. Nc3 {[%clk 0:02:31]}  Qg6 {[%clk 0:02:40]} 13. Qb3 {[%clk 0:02:21]}  d6 {[%clk 0:02:31]} 14. f4 {[%clk 0:02:19]}  Nb8 {[%clk 0:02:23]} 15. f5 {[%clk 0:02:16]}  Qf6 {[%clk 0:02:23]} 16. Rae1 {[%clk 0:02:11]}  Nd7 {[%clk 0:02:11]} 17. Kh1 {[%clk 0:01:29]}  c6 {[%clk 0:02:10]} 18. Bd3 {[%clk 0:01:28]}  h6 {[%clk 0:02:06]} 19. Ne2 {[%clk 0:01:26]}  c5 {[%clk 0:01:56]} 20. bxc5 {[%clk 0:01:24]}  dxc5 {[%clk 0:01:55]} 21. dxc5 {[%clk 0:01:19]}  Ne5 {[%clk 0:01:54]} 22. Bb1 {[%clk 0:01:17]}  N7c6 {[%clk 0:01:47]} 23. cxb6 {[%clk 0:01:15]}  axb6 {[%clk 0:01:46]} 24. Qxb6 {[%clk 0:01:15]}  Rb8 {[%clk 0:01:46]} 25. Nf4 {[%clk 0:01:09]}  Ba6 {[%clk 0:01:38]} 26. Qxa6 {[%clk 0:01:09]} 1-0


[Site "https://www.chess.com"]

[Event "Titled Tuesday Blitz August 22 Early 2023"]
[White "Albertini, Luca"]
[Black "Stepanencu, Nicodim-Cosmin"]
[WhiteFideId "847038"]
[BlackFideId "1256220"]
[WhiteElo "2314"]
[BlackElo "2601"]
[Result "1-0"]
[Round "1"]
[TimeControl "180+1"]
[Date "2023.08.22"]
[WhiteClock "0:00:17"]
[BlackClock "0:00:02"]
[Board "173"]

1. d4 {[%clk 0:02:56]}  Nf6 {[%clk 0:02:52]} 2. c4 {[%clk 0:02:57]}  g6 {[%clk 0:02:52]} 3. Nc3 {[%clk 0:02:57]}  d5 {[%clk 0:02:51]} 4. cxd5 {[%clk 0:02:58]}  Nxd5 {[%clk 0:02:51]} 5. Na4 {[%clk 0:02:56]}  Bg7 {[%clk 0:02:50]} 6. e4 {[%clk 0:02:56]}  Nb6 {[%clk 0:02:50]} 7. Be3 {[%clk 0:02:54]}  O-O {[%clk 0:02:48]} 8. Nf3 {[%clk 0:02:54]}  Nc6 {[%clk 0:02:47]} 9. h3 {[%clk 0:02:49]}  f5 {[%clk 0:02:31]} 10. Qb3+ {[%clk 0:02:35]}  Kh8 {[%clk 0:02:25]} 11. Nxb6 {[%clk 0:02:30]}  axb6 {[%clk 0:02:23]} 12. Ng5 {[%clk 0:02:25]}  f4 {[%clk 0:02:15]} 13. Nf7+ {[%clk 0:01:57]}  Rxf7 {[%clk 0:02:14]} 14. Qxf7 {[%clk 0:01:58]}  fxe3 {[%clk 0:02:14]} 15. fxe3 {[%clk 0:01:59]}  e6 {[%clk 0:01:41]} 16. Bc4 {[%clk 0:01:57]}  Bd7 {[%clk 0:01:15]} 17. O-O {[%clk 0:01:53]}  Qe8 {[%clk 0:01:04]} 18. Qf4 {[%clk 0:01:36]}  e5 {[%clk 0:01:00]} 19. dxe5 {[%clk 0:00:54]}  Nxe5 {[%clk 0:00:57]} 20. Bb3 {[%clk 0:00:48]}  Nd3 {[%clk 0:00:39]} 21. Qh4 {[%clk 0:00:44]}  Bc6 {[%clk 0:00:31]} 22. Rad1 {[%clk 0:00:32]}  Nc5 {[%clk 0:00:19]} 23. Bf7 {[%clk 0:00:29]}  Qxe4 {[%clk 0:00:19]} 24. Qxe4 {[%clk 0:00:27]}  Bxe4 {[%clk 0:00:14]} 25. b4 {[%clk 0:00:27]}  Nd3 {[%clk 0:00:12]} 26. Bc4 {[%clk 0:00:25]}  Nb2 {[%clk 0:00:11]} 27. Rc1 {[%clk 0:00:25]}  Nxc4 {[%clk 0:00:11]} 28. Rxc4 {[%clk 0:00:26]}  Bd3 {[%clk 0:00:11]} 29. Rxc7 {[%clk 0:00:26]}  Bxf1 {[%clk 0:00:12]} 30. Kxf1 {[%clk 0:00:27]}  Rb8 {[%clk 0:00:08]} 31. a4 {[%clk 0:00:26]}  Be5 {[%clk 0:00:08]} 32. Re7 {[%clk 0:00:25]}  Bc3 {[%clk 0:00:08]} 33. b5 {[%clk 0:00:24]}  Ba5 {[%clk 0:00:08]} 34. Ke2 {[%clk 0:00:24]}  Rc8 {[%clk 0:00:08]} 35. Rxb7 {[%clk 0:00:24]}  Rc4 {[%clk 0:00:09]} 36. Kf3 {[%clk 0:00:23]}  Rxa4 {[%clk 0:00:09]} 37. e4 {[%clk 0:00:23]}  Rb4 {[%clk 0:00:10]} 38. Kf4 {[%clk 0:00:23]}  Rxb5 {[%clk 0:00:10]} 39. g4 {[%clk 0:00:23]}  Bc3 {[%clk 0:00:09]} 40. g5 {[%clk 0:00:21]}  Be5+ {[%clk 0:00:09]} 41. Kg4 {[%clk 0:00:22]}  Rb3 {[%clk 0:00:08]} 42. Re7 {[%clk 0:00:20]}  Bd4 {[%clk 0:00:05]} 43. e5 {[%clk 0:00:19]}  Re3 {[%clk 0:00:05]} 44. Kf4 {[%clk 0:00:20]}  Rxe5 {[%clk 0:00:05]} 45. Rd7 {[%clk 0:00:18]}  Rf5+ {[%clk 0:00:03]} 46. Ke4 {[%clk 0:00:18]}  Bc5 {[%clk 0:00:04]} 47. h4 {[%clk 0:00:18]}  Rf8 {[%clk 0:00:04]} 48. Kd5 {[%clk 0:00:17]}  Kg8 {[%clk 0:00:04]} 49. Ke6 {[%clk 0:00:17]}  Re8+ {[%clk 0:00:04]} 50. Kf6 {[%clk 0:00:16]}  Re7 {[%clk 0:00:05]} 51. Rd8+ {[%clk 0:00:16]}  Re8 {[%clk 0:00:05]} 52. Rxe8+ {[%clk 0:00:17]}  Bf8 {[%clk 0:00:06]} 53. Rb8 {[%clk 0:00:17]}  h5 {[%clk 0:00:05]} 54. Kxg6 {[%clk 0:00:16]}  b5 {[%clk 0:00:05]} 55. Rxb5 {[%clk 0:00:16]}  Kh8 {[%clk 0:00:04]} 56. Rb8 {[%clk 0:00:16]}  Kg8 {[%clk 0:00:02]} 57. Rc8 {[%clk 0:00:17]} 1-0


[Site "https://www.chess.com"]

[Event "Titled Tuesday Blitz August 22 Early 2023"]
[White "Kochiev, Ivan"]
[Black "Prydun, Andriy"]
[WhiteFideId "2917890"]
[BlackFideId "14145898"]
[WhiteElo "2601"]
[BlackElo "2313"]
[Result "1-0"]
[Round "1"]
[TimeControl "180+1"]
[Date "2023.08.22"]
[WhiteClock "0:00:11"]
[BlackClock "0:00:14"]
[Board "174"]

1. e4 {[%clk 0:03:00]}  c5 {[%clk 0:02:56]} 2. Nf3 {[%clk 0:03:00]}  d6 {[%clk 0:02:54]} 3. d4 {[%clk 0:03:01]}  cxd4 {[%clk 0:02:53]} 4. Nxd4 {[%clk 0:03:02]}  Nf6 {[%clk 0:02:53]} 5. f3 {[%clk 0:03:01]}  Nc6 {[%clk 0:02:49]} 6. c4 {[%clk 0:02:58]}  Qb6 {[%clk 0:02:48]} 7. Nc2 {[%clk 0:02:43]}  g6 {[%clk 0:02:45]} 8. Nc3 {[%clk 0:02:38]}  Bg7 {[%clk 0:02:44]} 9. Bd3 {[%clk 0:02:20]}  O-O {[%clk 0:02:42]} 10. Qe2 {[%clk 0:02:17]}  Nd4 {[%clk 0:02:33]} 11. Nxd4 {[%clk 0:02:17]}  Qxd4 {[%clk 0:02:34]} 12. Be3 {[%clk 0:02:17]}  Qe5 {[%clk 0:02:34]} 13. O-O {[%clk 0:02:13]}  Qa5 {[%clk 0:02:27]} 14. Rac1 {[%clk 0:02:10]}  Be6 {[%clk 0:02:26]} 15. Rc2 {[%clk 0:01:56]}  Rfc8 {[%clk 0:02:15]} 16. Rb1 {[%clk 0:01:53]}  Qe5 {[%clk 0:02:14]} 17. b4 {[%clk 0:01:22]}  Nh5 {[%clk 0:02:07]} 18. g3 {[%clk 0:01:17]}  Bh8 {[%clk 0:01:57]} 19. c5 {[%clk 0:01:11]}  dxc5 {[%clk 0:01:54]} 20. bxc5 {[%clk 0:01:12]}  b6 {[%clk 0:01:52]} 21. Na4 {[%clk 0:00:49]}  bxc5 {[%clk 0:01:42]} 22. Nxc5 {[%clk 0:00:49]}  Rab8 {[%clk 0:00:52]} 23. Rxb8 {[%clk 0:00:45]}  Rxb8 {[%clk 0:00:46]} 24. Nxe6 {[%clk 0:00:40]}  Rb1+ {[%clk 0:00:44]} 25. Kg2 {[%clk 0:00:35]}  Qxe6 {[%clk 0:00:41]} 26. Bc4 {[%clk 0:00:29]}  Qd7 {[%clk 0:00:23]} 27. Rd2 {[%clk 0:00:24]}  Qc7 {[%clk 0:00:21]} 28. Bb3 {[%clk 0:00:18]}  Rc1 {[%clk 0:00:20]} 29. Qb5 {[%clk 0:00:11]}  Bc3 {[%clk 0:00:19]} 30. Qe8+ {[%clk 0:00:11]}  Kg7 {[%clk 0:00:18]} 31. Qxf7+ {[%clk 0:00:12]}  Kh8 {[%clk 0:00:14]} 32. Qg8# {[%clk 0:00:11]} 1-0


[Site "https://www.chess.com"]